[Event "Live Chess"]
[Site "Chess.com"]
[Date "2021.02.28"]
[Round "-"]
[White "Paul, Rabindra"]
[Black "McGillivray, Calum"]
[Result "1-0"]
[BlackElo "1489"]
[CurrentPosition "3b1Q1k/pb1r3p/1p4p1/2p1p3/4P3/2P2NP1/PP3PB1/3rR1K1 b - -"]
[ECO "A07"]
[ECOUrl "https://www.chess.com/openings/Kings-Indian-Attack-Yugoslav-Variation-3.Bg2-e6"]
[EndDate "2021.02.28"]
[EndTime "14:30:41"]
[Link "https://www.chess.com/live/game/8259912255"]
[StartTime "14:04:44"]
[Termination "herr_doktor won by checkmate"]
[TimeControl "1500+10"]
[Timezone "UTC"]
[UTCDate "2021.02.28"]
[UTCTime "14:04:44"]
[WhiteElo "1798"]

1. Nf3 { [%clk 0:25:10] } 1... d5 { [%clk 0:25:10] } 2. g3 { [%clk 0:25:18.3] } 2... Nf6 { [%clk 0:25:11.8] } 3. Bg2 { [%clk 0:25:25.1] } 3... e6 { [%clk 0:25:10.4] } 4. O-O { [%clk 0:25:27.5] } 4... c5 { [%clk 0:25:12.6] } 5. d3 { [%clk 0:25:32.6] } 5... Bd6 { [%clk 0:25:14.3] } 6. Nbd2 { [%clk 0:25:39.4] } 6... Nc6 { [%clk 0:25:00.6] } 7. Re1 { [%clk 0:25:45.9] } 7... O-O { [%clk 0:25:03.2] } 8. e4 { [%clk 0:25:50.6] } 8... dxe4 { [%clk 0:24:50.2] } 9. dxe4 { [%clk 0:25:57.3] } 9... e5 { [%clk 0:24:48.3] } 10. c3 { [%clk 0:25:32.3] } 10... b6 { [%clk 0:24:38.6] } 11. Qc2 { [%clk 0:21:09.6] } 11... Bb7 { [%clk 0:23:59.5] } 12. Nc4 { [%clk 0:21:09.4] } 12... Bc7 { [%clk 0:24:01.1] } 13. Bg5 { [%clk 0:21:17.5] } 13... Qe7 { [%clk 0:23:55.9] } 14. Ne3 { [%clk 0:20:54.4] } 14... Qe6 { [%clk 0:23:45.1] } 15. Bxf6 { [%clk 0:18:41.9] } 15... Qxf6 { [%clk 0:23:51.8] } 16. Nd5 { [%clk 0:18:50.9] } 16... Qd8 { [%clk 0:23:58.7] } 17. Rad1 { [%clk 0:18:59.7] } 17... Ne7 { [%clk 0:23:46.6] } 18. Nf6+ { [%clk 0:19:00] } 18... gxf6 { [%clk 0:23:42.8] } 19. Rxd8 { [%clk 0:19:08.7] } 19... Raxd8 { [%clk 0:23:50.4] } 20. Qc1 { [%clk 0:17:19.2] } 20... Rd3 { [%clk 0:23:24.2] } 21. Qh6 { [%clk 0:16:58.8] } 21... Rfd8 { [%clk 0:23:08.3] } 22. Qxf6 { [%clk 0:17:03.4] } 22... Ng6 { [%clk 0:22:36.6] } 23. Qg5 { [%clk 0:13:36] } 23... Kh8 { [%clk 0:21:52.8] } 24. h4 { [%clk 0:13:34.1] } 24... R8d7 { [%clk 0:21:21.4] } 25. h5 { [%clk 0:13:25.3] } 25... Bd8 { [%clk 0:20:42.6] } 26. Qh6 { [%clk 0:13:05.6] } 26... Rd1 { [%clk 0:20:18] } 27. hxg6 { [%clk 0:12:59.6] } 27... fxg6 { [%clk 0:20:20.9] } 28. Qf8# { [%clk 0:13:06.6] } 1-0

[Event "Live Chess"]
[Site "Chess.com"]
[Date "2021.02.28"]
[Round "-"]
[White "Ridge, Benjamin"]
[Black "Brown, Steven A"]
[Result "1-0"]
[BlackElo "1888"]
[CurrentPosition "5b2/3N4/5k2/3P3P/4K3/8/8/8 b - -"]
[ECO "A11"]
[ECOUrl "https://www.chess.com/openings/English-Opening-Caro-Kann-Defensive-System-2.Nc3-d5"]
[EndDate "2021.02.28"]
[EndTime "14:31:29"]
[Link "https://www.chess.com/live/game/8260479111"]
[StartTime "14:12:39"]
[Termination "scottishbenjo won by resignation"]
[TimeControl "1500+10"]
[Timezone "UTC"]
[UTCDate "2021.02.28"]
[UTCTime "14:12:39"]
[WhiteElo "1525"]

1. c4 { [%clk 0:25:10] } 1... c6 { [%clk 0:25:10] } 2. Nc3 { [%clk 0:25:16.4] } 2... d5 { [%clk 0:25:17.3] } 3. cxd5 { [%clk 0:25:03.7] } 3... cxd5 { [%clk 0:25:23.8] } 4. d4 { [%clk 0:25:12] } 4... Nc6 { [%clk 0:25:26.8] } 5. Nf3 { [%clk 0:25:17.5] } 5... a6 { [%clk 0:25:22.9] } 6. Bf4 { [%clk 0:25:11.4] } 6... Nf6 { [%clk 0:25:27.6] } 7. e3 { [%clk 0:25:17.6] } 7... Bg4 { [%clk 0:25:33.2] } 8. Be2 { [%clk 0:25:02.7] } 8... e6 { [%clk 0:25:37.6] } 9. Ne5 { [%clk 0:25:10.2] } 9... Bxe2 { [%clk 0:25:43.7] } 10. Qxe2 { [%clk 0:25:18.8] } 10... Rc8 { [%clk 0:25:48.1] } 11. O-O { [%clk 0:25:26.1] } 11... Be7 { [%clk 0:25:53.4] } 12. Rac1 { [%clk 0:25:33.2] } 12... O-O { [%clk 0:26:00.5] } 13. Qd2 { [%clk 0:24:41.5] } 13... Nh5 { [%clk 0:25:06.7] } 14. Nxc6 { [%clk 0:24:24.3] } 14... Rxc6 { [%clk 0:25:12.1] } 15. Ne2 { [%clk 0:24:23.7] } 15... Nxf4 { [%clk 0:25:14.7] } 16. Nxf4 { [%clk 0:24:32.4] } 16... Qd7 { [%clk 0:24:31.7] } 17. Rxc6 { [%clk 0:24:29.2] } 17... bxc6 { [%clk 0:24:20.8] } 18. Nd3 { [%clk 0:24:32.3] } 18... Rb8 { [%clk 0:24:26.5] } 19. b3 { [%clk 0:24:40.8] } 19... Qb7 { [%clk 0:24:26.3] } 20. Rc1 { [%clk 0:24:47.4] } 20... Qb5 { [%clk 0:24:28.8] } 21. Nc5 { [%clk 0:24:49.4] } 21... a5 { [%clk 0:22:03.6] } 22. h3 { [%clk 0:24:44.4] } 22... h6 { [%clk 0:22:06.4] } 23. Qc3 { [%clk 0:24:28.3] } 23... Qb4 { [%clk 0:21:35.1] } 24. Qxb4 { [%clk 0:24:16.3] } 24... axb4 { [%clk 0:21:28.4] } 25. Rc2 { [%clk 0:24:06.7] } 25... Ra8 { [%clk 0:21:26.2] } 26. Nd3 { [%clk 0:24:08.5] } 26... f6 { [%clk 0:21:19.8] } 27. Rxc6 { [%clk 0:22:53.3] } 27... Rxa2 { [%clk 0:21:20.9] } 28. Rxe6 { [%clk 0:23:02.1] } 28... Kf7 { [%clk 0:21:27.3] } 29. Rb6 { [%clk 0:22:56.4] } 29... Ra1+ { [%clk 0:21:21.1] } 30. Kh2 { [%clk 0:23:04.4] } 30... Rb1 { [%clk 0:21:29.7] } 31. Nxb4 { [%clk 0:23:08.2] } 31... Rxb3 { [%clk 0:21:36.8] } 32. Nxd5 { [%clk 0:23:17.1] } 32... Rxb6 { [%clk 0:21:32.3] } 33. Nxb6 { [%clk 0:23:25.9] } 33... Ke6 { [%clk 0:21:39.8] } 34. g4 { [%clk 0:23:28.4] } 34... f5 { [%clk 0:21:44.5] } 35. Kg3 { [%clk 0:23:34.2] } 35... fxg4 { [%clk 0:21:52.6] } 36. hxg4 { [%clk 0:23:42.9] } 36... g6 { [%clk 0:21:59.9] } 37. f4 { [%clk 0:23:49.5] } 37... h5 { [%clk 0:22:04.6] } 38. f5+ { [%clk 0:23:45.8] } 38... gxf5 { [%clk 0:22:13.1] } 39. gxh5 { [%clk 0:23:54.6] } 39... Bg5 { [%clk 0:22:15] } 40. Kf3 { [%clk 0:23:52.2] } 40... Bh6 { [%clk 0:22:06.2] } 41. Nc4 { [%clk 0:23:44] } 41... Kd5 { [%clk 0:22:13.4] } 42. Ne5 { [%clk 0:23:52.9] } 42... Ke6 { [%clk 0:22:21.6] } 43. e4 { [%clk 0:23:51.3] } 43... fxe4+ { [%clk 0:22:29.8] } 44. Kxe4 { [%clk 0:24:00.3] } 44... Bf8 { [%clk 0:22:25.1] } 45. d5+ { [%clk 0:24:06.8] } 45... Kf6 { [%clk 0:22:31.8] } 46. Nd7+ { [%clk 0:24:15.4] } 1-0

[Event "Live Chess"]
[Site "Chess.com"]
[Date "2021.02.28"]
[Round "-"]
[White "Robinson, Stephen"]
[Black "Whittaker, Ian P"]
[Result "1-0"]
[BlackElo "1691"]
[CurrentPosition "6rk/5r1p/p7/5p2/4nN1P/2P5/1P4P1/R4RK1 b - -"]
[ECO "A45"]
[ECOUrl "https://www.chess.com/openings/Indian-Game"]
[EndDate "2021.02.28"]
[EndTime "14:49:52"]
[Link "https://www.chess.com/live/game/8259854411"]
[StartTime "14:01:12"]
[Termination "Stephenrobinson10 won on time"]
[TimeControl "1510"]
[Timezone "UTC"]
[UTCDate "2021.02.28"]
[UTCTime "14:01:12"]
[WhiteElo "1627"]

1. d4 { [%clk 0:25:10] } 1... Nf6 { [%clk 0:25:10] } 2. Bf4 { [%clk 0:25:06.3] } 2... d6 { [%clk 0:24:56.9] } 3. Nc3 { [%clk 0:24:58.3] } 3... g6 { [%clk 0:24:35.7] } 4. e4 { [%clk 0:24:55.3] } 4... Bg7 { [%clk 0:24:28.4] } 5. Qd2 { [%clk 0:24:49] } 5... a6 { [%clk 0:23:40.7] } 6. a4 { [%clk 0:23:47.6] } 6... c6 { [%clk 0:23:12.1] } 7. a5 { [%clk 0:22:16.6] } 7... b5 { [%clk 0:22:23] } 8. axb6 { [%clk 0:22:00.7] } 8... Qxb6 { [%clk 0:20:01.5] } 9. Na4 { [%clk 0:21:42.3] } 9... Qd8 { [%clk 0:18:50.7] } 10. Bd3 { [%clk 0:18:20.3] } 10... O-O { [%clk 0:18:29] } 11. Ne2 { [%clk 0:17:29.7] } 11... Nbd7 { [%clk 0:18:18] } 12. O-O { [%clk 0:16:34.1] } 12... e5 { [%clk 0:15:52.7] } 13. Bg5 { [%clk 0:16:08] } 13... exd4 { [%clk 0:14:26] } 14. Nxd4 { [%clk 0:15:56.8] } 14... Ne5 { [%clk 0:13:17.3] } 15. f4 { [%clk 0:15:16.5] } 15... Nxd3 { [%clk 0:13:02] } 16. Qxd3 { [%clk 0:13:34.7] } 16... Qc7 { [%clk 0:11:51.1] } 17. f5 { [%clk 0:12:31] } 17... d5 { [%clk 0:08:05.4] } 18. e5 { [%clk 0:10:06.5] } 18... Qxe5 { [%clk 0:07:47] } 19. Nxc6 { [%clk 0:09:51.1] } 19... Qd6 { [%clk 0:07:23.9] } 20. Nd4 { [%clk 0:09:15.1] } 20... Ne4 { [%clk 0:05:11.6] } 21. Bf4 { [%clk 0:08:19.5] } 21... Qf6 { [%clk 0:04:34.9] } 22. c3 { [%clk 0:07:38.1] } 22... gxf5 { [%clk 0:02:45] } 23. Nf3 { [%clk 0:07:23] } 23... Bb7 { [%clk 0:02:18.9] } 24. Be5 { [%clk 0:07:12.1] } 24... Qg6 { [%clk 0:01:53.9] } 25. Bxg7 { [%clk 0:06:50.5] } 25... Kxg7 { [%clk 0:01:24.7] } 26. Qd4+ { [%clk 0:06:40.9] } 26... f6 { [%clk 0:01:07] } 27. Nh4 { [%clk 0:06:25.4] } 27... Qg4 { [%clk 0:00:46.6] } 28. Nxf5+ { [%clk 0:06:13] } 28... Kh8 { [%clk 0:00:45.1] } 29. h3 { [%clk 0:04:32.5] } 29... Qg5 { [%clk 0:00:41.1] } 30. Ne3 { [%clk 0:02:57.3] } 30... Rf7 { [%clk 0:00:17.9] } 31. Nb6 { [%clk 0:02:48.1] } 31... Rg8 { [%clk 0:00:15] } 32. Nbxd5 { [%clk 0:02:34.9] } 32... Bxd5 { [%clk 0:00:12.4] } 33. h4 { [%clk 0:02:15.9] } 33... Qe5 { [%clk 0:00:05.2] } 34. Qxd5 { [%clk 0:02:10.2] } 34... Qxd5 { [%clk 0:00:03.1] } 35. Nxd5 { [%clk 0:02:05.8] } 35... f5 { [%clk 0:00:02.1] } 36. Nf4 { [%clk 0:01:58.7] } 1-0

[Event "Live Chess"]
[Site "Chess.com"]
[Date "2021.02.28"]
[Round "-"]
[White "Rushing, Alexander J"]
[Black "McLaggan, J Iain"]
[Result "1-0"]
[BlackElo "1633"]
[CurrentPosition "6k1/ppp1r2p/2nb1Pp1/3p4/3P1P2/P3PN1R/1P1N1K2/7R b - -"]
[ECO "A45"]
[ECOUrl "https://www.chess.com/openings/Trompowsky-Attack-Raptor-Variation"]
[EndDate "2021.02.28"]
[EndTime "14:41:27"]
[Link "https://www.chess.com/live/game/8260486413"]
[StartTime "14:13:15"]
[Termination "Anacampserote won by resignation"]
[TimeControl "1500+10"]
[Timezone "UTC"]
[UTCDate "2021.02.28"]
[UTCTime "14:13:15"]
[WhiteElo "1559"]

1. d4 { [%clk 0:25:10] } 1... Nf6 { [%clk 0:25:10] } 2. Bg5 { [%clk 0:25:17.9] } 2... Ne4 { [%clk 0:24:37.3] } 3. h4 { [%clk 0:25:23] } 3... d5 { [%clk 0:24:21.1] } 4. Nd2 { [%clk 0:25:25.9] } 4... Nxg5 { [%clk 0:23:30.3] } 5. hxg5 { [%clk 0:25:30.1] } 5... Bf5 { [%clk 0:23:14.3] } 6. e3 { [%clk 0:25:33.2] } 6... e6 { [%clk 0:23:08.7] } 7. c4 { [%clk 0:25:31.8] } 7... Nc6 { [%clk 0:20:54.5] } 8. g4 { [%clk 0:24:21.8] } 8... Bg6 { [%clk 0:20:35] } 9. Qb3 { [%clk 0:23:29] } 9... Bb4 { [%clk 0:18:44.4] } 10. cxd5 { [%clk 0:23:21.1] } 10... Qxd5 { [%clk 0:18:03.8] } 11. Qxd5 { [%clk 0:23:26.5] } 11... exd5 { [%clk 0:17:29.3] } 12. a3 { [%clk 0:23:33.5] } 12... Be7 { [%clk 0:17:15.6] } 13. f4 { [%clk 0:22:29.4] } 13... f5 { [%clk 0:16:54.2] } 14. gxf5 { [%clk 0:22:24.5] } 14... Bxf5 { [%clk 0:16:47.9] } 15. Bh3 { [%clk 0:22:22.9] } 15... O-O { [%clk 0:15:54.3] } 16. Bxf5 { [%clk 0:22:25.4] } 16... Rxf5 { [%clk 0:15:55.6] } 17. Ngf3 { [%clk 0:21:58.7] } 17... Re8 { [%clk 0:15:39.9] } 18. Kf2 { [%clk 0:19:49.3] } 18... Bd6 { [%clk 0:14:28.7] } 19. Rac1 { [%clk 0:18:48.6] } 19... Re7 { [%clk 0:13:16.7] } 20. Rh3 { [%clk 0:18:11.3] } 20... g6 { [%clk 0:13:00.6] } 21. Rch1 { [%clk 0:17:36.4] } 21... Rf6 { [%clk 0:11:39.6] } 22. gxf6 { [%clk 0:17:43.2] } 1-0

[Event "Live Chess"]
[Site "Chess.com"]
[Date "2021.02.28"]
[Round "-"]
[White "Keegan, James"]
[Black "McKinnon, Scott"]
[Result "1-0"]
[BlackElo "1480"]
[CurrentPosition "8/3qkp1p/p1rppN2/4p3/2p5/5Q2/PPP2PKP/3RR3 b - -"]
[ECO "B50"]
[ECOUrl "https://www.chess.com/openings/Sicilian-Defense-2.Nf3-d6"]
[EndDate "2021.02.28"]
[EndTime "14:03:14"]
[Link "https://www.chess.com/live/game/8259823517"]
[StartTime "13:59:14"]
[Termination "jameskeegan won by resignation"]
[TimeControl "1500+10"]
[Timezone "UTC"]
[UTCDate "2021.02.28"]
[UTCTime "13:59:14"]
[WhiteElo "1382"]

1. e4 { [%clk 0:25:10] } 1... c5 { [%clk 0:25:10] } 2. Nf3 { [%clk 0:25:17.8] } 2... d6 { [%clk 0:25:18.2] } 3. Bc4 { [%clk 0:25:26.8] } 3... Nc6 { [%clk 0:25:22.4] } 4. O-O { [%clk 0:25:28] } 4... Nf6 { [%clk 0:25:30.9] } 5. Nc3 { [%clk 0:25:36.1] } 5... e6 { [%clk 0:25:39.7] } 6. d4 { [%clk 0:25:39.5] } 6... cxd4 { [%clk 0:25:37.4] } 7. Nxd4 { [%clk 0:25:48.1] } 7... a6 { [%clk 0:25:45.4] } 8. Bg5 { [%clk 0:25:51.4] } 8... Be7 { [%clk 0:25:40.2] } 9. Re1 { [%clk 0:25:59.5] } 9... b5 { [%clk 0:25:41.7] } 10. Nxc6 { [%clk 0:26:01.2] } 10... Qd7 { [%clk 0:25:41.9] } 11. Nxe7 { [%clk 0:26:03.6] } 11... bxc4 { [%clk 0:25:49.5] } 12. Nxc8 { [%clk 0:26:08.9] } 12... Rxc8 { [%clk 0:25:56.6] } 13. Bxf6 { [%clk 0:26:16.4] } 13... gxf6 { [%clk 0:26:06.3] } 14. Qf3 { [%clk 0:26:14] } 14... Ke7 { [%clk 0:26:13.9] } 15. Rad1 { [%clk 0:26:15.2] } 15... Rhg8 { [%clk 0:26:21.5] } 16. e5 { [%clk 0:26:02.8] } 16... fxe5 { [%clk 0:26:27.6] } 17. Ne4 { [%clk 0:26:10.9] } 17... Rc6 { [%clk 0:25:59.1] } 18. Nf6 { [%clk 0:26:16.1] } 18... Rxg2+ { [%clk 0:26:02.5] } 19. Kxg2 { [%clk 0:26:20.5] } 1-0

[Event "Live Chess"]
[Site "Chess.com"]
[Date "2021.02.28"]
[Round "-"]
[White "Begg, David"]
[Black "Robertson, David A"]
[Result "1-0"]
[BlackElo "1741"]
[CurrentPosition "8/p4kp1/1pBPn3/1P6/8/P7/5K2/8 b - -"]
[ECO "A46"]
[ECOUrl "https://www.chess.com/openings/Indian-Game-Yusupov-Rubinstein-System-3...c5-4.Bd3"]
[EndDate "2021.02.28"]
[EndTime "14:50:04"]
[Link "https://www.chess.com/live/game/8259888191"]
[StartTime "14:03:27"]
[Termination "Old-Woodpusher won on time"]
[TimeControl "1510"]
[Timezone "UTC"]
[UTCDate "2021.02.28"]
[UTCTime "14:03:27"]
[WhiteElo "1739"]

1. d4 { [%clk 0:25:10] } 1... Nf6 { [%clk 0:25:10] } 2. Nf3 { [%clk 0:25:07] } 2... e6 { [%clk 0:24:49.7] } 3. e3 { [%clk 0:25:02.2] } 3... c5 { [%clk 0:24:33] } 4. Bd3 { [%clk 0:24:53.2] } 4... Nc6 { [%clk 0:23:43.6] } 5. O-O { [%clk 0:24:33.5] } 5... cxd4 { [%clk 0:22:18.5] } 6. exd4 { [%clk 0:24:29] } 6... Nb4 { [%clk 0:21:40.9] } 7. Be2 { [%clk 0:24:07.9] } 7... Qc7 { [%clk 0:21:29.5] } 8. c3 { [%clk 0:24:04.3] } 8... Nbd5 { [%clk 0:21:23.4] } 9. c4 { [%clk 0:23:49.8] } 9... Nf4 { [%clk 0:21:02.4] } 10. Re1 { [%clk 0:23:13.9] } 10... Bb4 { [%clk 0:19:56.9] } 11. Nc3 { [%clk 0:23:09.7] } 11... O-O { [%clk 0:18:42.7] } 12. Bf1 { [%clk 0:22:16] } 12... d5 { [%clk 0:17:52.8] } 13. g3 { [%clk 0:21:55.7] } 13... Ng6 { [%clk 0:17:40.9] } 14. c5 { [%clk 0:21:47] } 14... Ne4 { [%clk 0:16:51.2] } 15. Nb5 { [%clk 0:21:00.1] } 15... Qb8 { [%clk 0:16:27.7] } 16. Bd2 { [%clk 0:20:18.6] } 16... Nxd2 { [%clk 0:13:12.6] } 17. Nxd2 { [%clk 0:20:12.5] } 17... e5 { [%clk 0:11:42.5] } 18. a3 { [%clk 0:20:00.2] } 18... Bxd2 { [%clk 0:10:34.3] } 19. Qxd2 { [%clk 0:19:52.8] } 19... e4 { [%clk 0:09:57.6] } 20. b4 { [%clk 0:19:30.6] } 20... f5 { [%clk 0:09:39.3] } 21. Qg5 { [%clk 0:15:28.4] } 21... Bd7 { [%clk 0:08:34.8] } 22. Nd6 { [%clk 0:15:21.3] } 22... b6 { [%clk 0:08:04] } 23. Bh3 { [%clk 0:14:39.6] } 23... Qd8 { [%clk 0:07:29.1] } 24. Qxd8 { [%clk 0:12:49] } 24... Raxd8 { [%clk 0:06:26] } 25. b5 { [%clk 0:11:49.1] } 25... f4 { [%clk 0:06:04.7] } 26. Bf1 { [%clk 0:10:53.7] } 26... Be6 { [%clk 0:05:09.4] } 27. Nb7 { [%clk 0:10:44.3] } 27... Rd7 { [%clk 0:04:30.9] } 28. c6 { [%clk 0:10:34.4] } 28... Rdf7 { [%clk 0:04:15] } 29. Nd6 { [%clk 0:09:33.2] } 29... Rf6 { [%clk 0:04:12.6] } 30. Ra2 { [%clk 0:08:45.6] } 30... Bg4 { [%clk 0:03:44] } 31. Nxe4 { [%clk 0:08:30.7] } 31... dxe4 { [%clk 0:03:39.2] } 32. Rxe4 { [%clk 0:08:29.2] } 32... Be6 { [%clk 0:03:22.7] } 33. Rd2 { [%clk 0:08:17] } 33... fxg3 { [%clk 0:03:14.2] } 34. hxg3 { [%clk 0:08:11.7] } 34... Bd5 { [%clk 0:03:07.4] } 35. Re3 { [%clk 0:07:49.9] } 35... h5 { [%clk 0:02:15.3] } 36. Rc3 { [%clk 0:07:36.7] } 36... h4 { [%clk 0:02:10.6] } 37. c7 { [%clk 0:07:27.7] } 37... Bb7 { [%clk 0:01:39.6] } 38. Bh3 { [%clk 0:07:13.6] } 38... hxg3 { [%clk 0:01:20.7] } 39. c8=Q { [%clk 0:06:27.7] } 39... Bxc8 { [%clk 0:01:07.8] } 40. Rxc8 { [%clk 0:06:19] } 40... gxf2+ { [%clk 0:00:52.7] } 41. Kf1 { [%clk 0:06:11.2] } 41... Nf4 { [%clk 0:00:30.5] } 42. Rxf8+ { [%clk 0:06:04] } 42... Rxf8 { [%clk 0:00:27] } 43. Bd7 { [%clk 0:05:30.5] } 43... Rd8 { [%clk 0:00:20.1] } 44. Bc6 { [%clk 0:05:26.8] } 44... Nh3 { [%clk 0:00:14.4] } 45. Kg2 { [%clk 0:04:46] } 45... Rf8 { [%clk 0:00:12] } 46. Rd1 { [%clk 0:04:30.3] } 46... f1=Q+ { [%clk 0:00:09.1] } 47. Rxf1 { [%clk 0:04:28.1] } 47... Rxf1 { [%clk 0:00:07.6] } 48. Kxf1 { [%clk 0:04:26.3] } 48... Nf4 { [%clk 0:00:06.5] } 49. d5 { [%clk 0:04:15.2] } 49... Kf7 { [%clk 0:00:05.8] } 50. d6 { [%clk 0:04:13.6] } 50... Ne6 { [%clk 0:00:02.1] } 51. Kf2 { [%clk 0:04:08.6] } 1-0

[Event "Live Chess"]
[Site "Chess.com"]
[Date "2021.02.28"]
[Round "-"]
[White "McKay, Jonathan"]
[Black "Donkin, Chris"]
[Result "1-0"]
[BlackElo "1595"]
[CurrentPosition "2rrn1k1/1p2Np1p/p1qpp1p1/8/2PRPP2/5Q1P/PP4P1/5R1K b - -"]
[ECO "B52"]
[ECOUrl "https://www.chess.com/openings/Sicilian-Defense-Canal-Main-Line-Sokolsky-Variation-5...Nc6-6.Nc3"]
[EndDate "2021.02.28"]
[EndTime "14:20:09"]
[Link "https://www.chess.com/live/game/8259795487"]
[StartTime "13:57:21"]
[Termination "dandytastic117 won by resignation"]
[TimeControl "1500+10"]
[Timezone "UTC"]
[UTCDate "2021.02.28"]
[UTCTime "13:57:21"]
[WhiteElo "1968"]

1. e4 { [%clk 0:25:10] } 1... c5 { [%clk 0:25:10] } 2. Nf3 { [%clk 0:25:14.1] } 2... d6 { [%clk 0:25:18.6] } 3. Bb5+ { [%clk 0:25:19.9] } 3... Bd7 { [%clk 0:25:26.4] } 4. Bxd7+ { [%clk 0:25:23.6] } 4... Qxd7 { [%clk 0:25:34.2] } 5. c4 { [%clk 0:25:20.5] } 5... Nc6 { [%clk 0:25:42.5] } 6. Nc3 { [%clk 0:25:22.3] } 6... g6 { [%clk 0:25:41.4] } 7. d4 { [%clk 0:25:16.7] } 7... cxd4 { [%clk 0:25:48] } 8. Nxd4 { [%clk 0:25:26.6] } 8... Bg7 { [%clk 0:25:55.8] } 9. Be3 { [%clk 0:25:31.7] } 9... Nf6 { [%clk 0:25:13.7] } 10. h3 { [%clk 0:23:43.2] } 10... O-O { [%clk 0:25:11.2] } 11. O-O { [%clk 0:23:47.1] } 11... a6 { [%clk 0:23:38.4] } 12. f4 { [%clk 0:21:05] } 12... Rfd8 { [%clk 0:22:35.9] } 13. Qf3 { [%clk 0:19:19.8] } 13... Ne8 { [%clk 0:21:39.6] } 14. Rad1 { [%clk 0:18:35.8] } 14... Nxd4 { [%clk 0:19:00.7] } 15. Bxd4 { [%clk 0:18:45.7] } 15... Bxd4+ { [%clk 0:19:09.1] } 16. Rxd4 { [%clk 0:18:53.2] } 16... Qc6 { [%clk 0:19:17.9] } 17. Kh1 { [%clk 0:18:15.9] } 17... Rac8 { [%clk 0:16:12.6] } 18. Nd5 { [%clk 0:17:21.5] } 18... e6 { [%clk 0:16:07.9] } 19. Ne7+ { [%clk 0:17:27.3] } 1-0

[Event "Live Chess"]
[Site "Chess.com"]
[Date "2021.02.28"]
[Round "-"]
[White "Nisbet, Charles"]
[Black "Blackford, Ross"]
[Result "0-1"]
[BlackElo "1265"]
[CurrentPosition "7k/p6p/4p3/5p2/3n4/5pP1/3K1P1P/8 w - -"]
[ECO "B13"]
[ECOUrl "https://www.chess.com/openings/Caro-Kann-Defense-Exchange-Variation-3...cxd5"]
[EndDate "2021.02.28"]
[EndTime "15:06:55"]
[Link "https://www.chess.com/live/game/8261058247"]
[StartTime "14:21:29"]
[Termination "Ragnar006 won by resignation"]
[TimeControl "1500"]
[Timezone "UTC"]
[UTCDate "2021.02.28"]
[UTCTime "14:21:29"]
[WhiteElo "1488"]

1. e4 { [%clk 0:25:00] } 1... c6 { [%clk 0:25:00] } 2. d4 { [%clk 0:24:57.1] } 2... d5 { [%clk 0:24:43.1] } 3. exd5 { [%clk 0:24:52.9] } 3... cxd5 { [%clk 0:24:41.7] } 4. c3 { [%clk 0:24:43.6] } 4... Nf6 { [%clk 0:24:39] } 5. Bd3 { [%clk 0:24:39.5] } 5... Nc6 { [%clk 0:24:37] } 6. Nf3 { [%clk 0:24:25.3] } 6... Bg4 { [%clk 0:24:26.5] } 7. Nbd2 { [%clk 0:24:01.3] } 7... e6 { [%clk 0:24:21.1] } 8. Qb3 { [%clk 0:23:50.8] } 8... Qc7 { [%clk 0:23:08.9] } 9. O-O { [%clk 0:23:12.5] } 9... Bxf3 { [%clk 0:23:00.5] } 10. Nxf3 { [%clk 0:23:05.1] } 10... Bd6 { [%clk 0:22:21.8] } 11. Re1 { [%clk 0:22:51.9] } 11... O-O { [%clk 0:21:39.3] } 12. Bg5 { [%clk 0:21:56.2] } 12... Rac8 { [%clk 0:14:49] } 13. Bxf6 { [%clk 0:19:12.4] } 13... gxf6 { [%clk 0:14:47] } 14. g3 { [%clk 0:16:25.6] } 14... Kh8 { [%clk 0:14:29] } 15. Rac1 { [%clk 0:11:17.7] } 15... Rg8 { [%clk 0:13:29.8] } 16. Kg2 { [%clk 0:09:58] } 16... Rg7 { [%clk 0:12:27.4] } 17. Rg1 { [%clk 0:08:14.8] } 17... Rcg8 { [%clk 0:11:33.4] } 18. Kh1 { [%clk 0:07:20.1] } 18... f5 { [%clk 0:09:10.2] } 19. c4 { [%clk 0:05:00] } 19... dxc4 { [%clk 0:08:24.9] } 20. Qxc4 { [%clk 0:04:02.9] } 20... f4 { [%clk 0:07:31.8] } 21. Ne5 { [%clk 0:03:32.5] } 21... Nxe5 { [%clk 0:06:23.5] } 22. Qxc7 { [%clk 0:02:49.1] } 22... Bxc7 { [%clk 0:06:21.4] } 23. Rxc7 { [%clk 0:02:05.7] } 23... Nxd3 { [%clk 0:06:16.1] } 24. Rxb7 { [%clk 0:01:00.3] } 24... f3 { [%clk 0:05:44.9] } 25. Rf1 { [%clk 0:00:47.5] } 25... f5 { [%clk 0:04:58.9] } 26. Rxg7 { [%clk 0:00:44.1] } 26... Rxg7 { [%clk 0:04:57.5] } 27. Kg1 { [%clk 0:00:37.2] } 27... Rc7 { [%clk 0:04:51.8] } 28. b3 { [%clk 0:00:25.4] } 28... Rc1 { [%clk 0:04:49.6] } 29. Rxc1 { [%clk 0:00:22.9] } 29... Nxc1 { [%clk 0:04:48.2] } 30. b4 { [%clk 0:00:19] } 30... Nxa2 { [%clk 0:04:45.9] } 31. Kf1 { [%clk 0:00:16.5] } 31... Nxb4 { [%clk 0:04:43.9] } 32. Ke1 { [%clk 0:00:14.5] } 32... Nc2+ { [%clk 0:04:42.8] } 33. Kd2 { [%clk 0:00:12.8] } 33... Nxd4 { [%clk 0:04:41.8] } 0-1